{"text_format":"1","workbook":"xlsx","n_sheets":9,"sheets":["Stipend Request Form","Stipend Form-Completed Example","Dimension Listings -->","Location","Program","Account","Grant","Activity","Payroll Entities"],"not_rendered":{"charts":0,"images":2,"macros":1,"external_links":1,"defined_names":5,"comments":0,"pivot_tables":0},"unopened":[],"bounds":{"document_bytes":16777216,"sheet_cells":100000,"rows_first":2000,"rows_last":500,"rows_between":2000,"halvings":0,"cell_chars":16384,"cell_head_chars":4096},"cells_cut":0,"cells_raw":0,"read":"whole","date_system":"1900"}

{"sheet":"Stipend Request Form","index":0,"n_rows":22,"n_cols":26,"rows_kept":22,"cut":false,"hidden":false,"merged":[[0,0,1,6],[2,7,2,10],[11,6,11,10],[3,8,4,10],[5,8,6,10],[7,8,8,10],[3,7,4,7],[5,7,6,7],[7,7,8,7]]}
["Archdiocese of Indianapolis\nEmployee Stipend Request Form (Non-Mass)"]
[]
[null,null,null,null,null,null,null,"Stipend Request Approver (1)"]
[null,null,null,null,null,null,null,"Name (typed):"]
[]
[null,null,null,null,null,null,null,"Signature:"]
[]
[null,null,null,null,null,null,null,"Date"]
[]
[]
[]
["You may enter multiple employees on the Form; one employee per line.",null,null,null,null,null,"Dimension Coding (use drop-down lists)"]
["Responsible Payroll Entity (Required) (2)","Name of Employee to be Paid (3)","Paylocity Employee ID (Required) (4)","Stipend Amount (5)","Date Services Rendered (6)","Description of Services Rendered (7)","Location (required) (8)","Program (required) (9)","Account (required) (10)","Project_Grant\n(if applicable) (11)","Activity\n(if applicable) (12)",null,null,null,null,"EEID","DED","DED Code","blank","amount","blank","blank","Cost Center 1 (Loc + Prog)","Cost Center 2 Acct","Cost Center 3 Grant","Job"]
["",null,null,null,null,null,null,"",null,null,null,null,null,null,null,{"$f":"C14","v":0},"E","NMASS",null,{"$f":"D14","v":0},null,null,{"$f":"LEFT(G14,3)&LEFT(H14,4)","v":""},{"$f":"LEFT(I14,5)","v":""},{"$f":"LEFT(J14,6)","v":""},{"$f":"LEFT(K14,3)","v":""}]
[null,null,null,null,null,null,null,null,null,null,null,null,null,null,null,{"$f":"C15","v":0},"E","NMASS",null,{"$f":"D15","v":0},null,null,{"$f":"LEFT(G15,3)&LEFT(H15,4)","v":""},{"$f":"LEFT(I15,5)","v":""},{"$f":"LEFT(J15,6)","v":""},{"$f":"LEFT(K15,3)","v":""}]
[null,null,null,null,null,null,null,"",null,null,null,null,null,null,null,{"$f":"C16","v":0},"E","NMASS",null,0,null,null,"","","",""]
[null,null,null,null,null,null,null,null,null,null,null,null,null,null,null,{"$f":"C17","v":0},"E","NMASS",null,0,null,null,"","","",""]
[null,null,null,null,null,null,null,null,null,null,null,null,null,null,null,{"$f":"C18","v":0},"E","NMASS",null,0,null,null,"","","",""]
[]
[]
[]
["Note: This form is designed to work with our payroll software import; please do not change or modify the form in any way (adding or deleting columns or rows)."]

{"sheet":"Stipend Form-Completed Example","index":1,"n_rows":22,"n_cols":26,"rows_kept":22,"cut":false,"hidden":false,"merged":[[0,0,1,6],[2,0,2,6],[2,7,2,10],[3,0,3,6],[3,7,4,7],[3,8,4,10],[4,0,4,6],[9,0,9,6],[11,6,11,10],[5,0,5,6],[5,7,6,7],[5,8,6,10],[6,0,6,6],[7,0,7,6],[7,7,8,7],[7,8,8,10],[8,0,8,6]]}
["Archdiocese of Indianapolis\nEmployee Stipend Request Form (Non-Mass)"]
[]
["Purpose: This form should be completed if a payment is to be made to an employee for services rendered beyond the normal hourly wage or salary. \"Employee\" is meant to include all employees of the Archdiocese and its related agencies, parishes, and high schools. All payments to employees must be processed via Central Payroll. ",null,null,null,null,null,null,"Stipend Request Approver (1)"]
["Instructions:",null,null,null,null,null,null,"Name (typed):","Jane Doe"]
["• Save the Excel file to a folder on your computer."]
["• Complete the Employee Stipend Request Form in Excel (gray-shaded cells should be completed).",null,null,null,null,null,null,"Signature:"]
["• Print the Employee Stipend Request Form and take it to your supervisor for review and approval"]
["• The supervisor should sign off in the top right corner of the printed form, indicating their approval.",null,null,null,null,null,null,"Date"]
["• Scan the approved Employee Stipend Request Form into PDF format."]
["• E-mail two documents to Central Payroll (centralpayroll@archindy.org): The PDF Employee Stipend Request Form and the Excel Employee Stipend Request Form. The PDF file is needed as evidence of approval for the payment. The Excel file is needed so that Central Payroll can efficiently and accurately process the Employee Stipend Request. \nEmployee Stipend Requests will not be processed unless both documents are included in the e-mail to Central Payroll."]
[]
["You may enter multiple employees on the Form; one employee per line.",null,null,null,null,null,"Dimension Coding (use drop-down lists)"]
["Responsible Payroll Entity (2)","Name of Employee to be Paid (3)","Paylocity Employee ID (4)","Stipend Amount (5)","Date Services Rendered (6)","Description of Services Rendered (7)","Location (required) (8)","Program (required) (9)","Account (required) (10)","Project_Grant\n(if applicable) (11)","Activity\n(if applicable) (12)",null,null,null,null,"EEID","DED","DED Code","blank","amount","blank","blank","Cost Center 1 (Loc + Prog)","Cost Center 2 Acct","Cost Center 3 Grant","Job"]
["13000-Roman Catholic Archdiocese of Indpls","John Doe",1300099999,100,"2018-07-01","Counseling services","100 - Roman Catholic Archdiocese of Indpls","1092 - Accounting Services - Arch","50006 Stipends","","",null,null,null,null,{"$f":"C14","v":1300099999},"E","NMASS",null,{"$f":"D14","v":100},null,null,{"$f":"LEFT(G14,3)&LEFT(H14,4)","v":"1001092"},{"$f":"LEFT(I14,5)","v":"50006"},{"$f":"LEFT(J14,6)","v":""},{"$f":"LEFT(K14,3)","v":""}]
["13000-Roman Catholic Archdiocese of Indpls","John Doe",1300099999,150,"2018-07-02","Teaching IPI (4 classes)","100 - Roman Catholic Archdiocese of Indpls","1092 - Accounting Services - Arch","50006 Stipends","","",null,null,null,null,{"$f":"C15","v":1300099999},"E","NMASS",null,{"$f":"D15","v":150},null,null,{"$f":"LEFT(G15,3)&LEFT(H15,4)","v":"1001092"},{"$f":"LEFT(I15,5)","v":"50006"},{"$f":"LEFT(J15,6)","v":""},{"$f":"LEFT(K15,3)","v":""}]
[null,null,null,null,null,null,null,"",null,null,null,null,null,null,null,{"$f":"C16","v":0},"E","NMASS",null,0,null,null,"","","",""]
[null,null,null,null,null,null,null,null,null,null,null,null,null,null,null,{"$f":"C17","v":0},"E","NMASS",null,0,null,null,"","","",""]
[null,null,null,null,null,null,null,null,null,null,null,null,null,null,null,{"$f":"C18","v":0},"E","NMASS",null,0,null,null,"","","",""]
[]
[]
[]
["Note: This form is designed to work with our payroll software import; please do not change or modify the form in any way (adding or deleting columns or rows)."]

{"sheet":"Dimension Listings -->","index":2,"n_rows":0,"n_cols":0,"rows_kept":0,"cut":false,"hidden":false,"merged":[]}

{"sheet":"Location","index":3,"n_rows":26,"n_cols":3,"rows_kept":26,"cut":false,"hidden":false,"merged":[]}
["Entity ID","Entity Name"]
[]
["100","Roman Catholic Archdiocese of Indpls",{"$f":"A3&\" - \"&B3","v":"100 - Roman Catholic Archdiocese of Indpls"}]
["110","Catholic Charities Indianapolis, Inc",{"$f":"A4&\" - \"&B4","v":"110 - Catholic Charities Indianapolis, Inc"}]
["120","Catholic Charities Bloomington, Inc.","120 - Catholic Charities Bloomington, Inc."]
["130","Catholic Charities Terre Haute, Inc.","130 - Catholic Charities Terre Haute, Inc."]
["140","Terre Haute Catholic Charities Foodbank","140 - Terre Haute Catholic Charities Foodbank"]
["150","Catholic Charities Tell City, Inc.","150 - Catholic Charities Tell City, Inc."]
["160","Catholic Charities of the Arch of Indi","160 - Catholic Charities of the Arch of Indi"]
["170","St. Elizabeth Catholic Charities, Inc.","170 - St. Elizabeth Catholic Charities, Inc."]
["180","Our Lady of Fatima Retreat House, Inc.","180 - Our Lady of Fatima Retreat House, Inc."]
["190","Bishop Simon Brute College Seminary, Inc","190 - Bishop Simon Brute College Seminary, Inc"]
["200","Catholic Community Foundation, Inc.","200 - Catholic Community Foundation, Inc."]
["210","Catholic Youth Org of the Arch of Indpls","210 - Catholic Youth Org of the Arch of Indpls"]
["220","Catholic Youth Org Camp Rancho Framasa","220 - Catholic Youth Org Camp Rancho Framasa"]
["230","St. Mary's Child Center, Inc.","230 - St. Mary's Child Center, Inc."]
["240","Criterion Press, Inc.","240 - Criterion Press, Inc."]
["250","Archdiocese of Indianapolis Cemeteries","250 - Archdiocese of Indianapolis Cemeteries"]
["260","ADI Schools, Inc.","260 - ADI Schools, Inc."]
["300-A","NDAA Central Office","300-A - NDAA Central Office"]
["300-B","NDAA St. Anthony","300-B - NDAA St. Anthony"]
["300-C","NDAA St. Philip Neri","300-C - NDAA St. Philip Neri"]
["300-D","NDAA Holy Cross","300-D - NDAA Holy Cross"]
["300-E","NDAA Holy Angels","300-E - NDAA Holy Angels"]
["300-F","NDAA Central Catholic","300-F - NDAA Central Catholic"]
["999","Eliminations","999 - Eliminations"]

{"sheet":"Program","index":4,"n_rows":208,"n_cols":3,"rows_kept":208,"cut":false,"hidden":false,"merged":[]}
["Program ID","Program name"]
[]
[1000,"ADI Schools, Inc.",{"$f":"A3&\" - \"&B3","v":"1000 - ADI Schools, Inc."}]
[1001,"Admin - Cemeteries",{"$f":"A4&\" - \"&B4","v":"1001 - Admin - Cemeteries"}]
[1002,"Our Lady of Peace - Cemeteries","1002 - Our Lady of Peace - Cemeteries"]
[1003,"St. Joseph - Cemeteries","1003 - St. Joseph - Cemeteries"]
[1004,"Holy Cross - Cemeteries","1004 - Holy Cross - Cemeteries"]
[1005,"Calvary - Cemeteries","1005 - Calvary - Cemeteries"]
[1006,"St. Malachy North - Cemeteries","1006 - St. Malachy North - Cemeteries"]
[1007,"St. Malachy West - Cemeteries","1007 - St. Malachy West - Cemeteries"]
[1008,"Calvary Terre Haute - Cemeteries","1008 - Calvary Terre Haute - Cemeteries"]
[1009,"St. Joseph Terre Haute - Cemeteries","1009 - St. Joseph Terre Haute - Cemeteries"]
[1010,"Bishop Brute College Seminary","1010 - Bishop Brute College Seminary"]
[1011,"Becky's Place - CCB","1011 - Becky's Place - CCB"]
[1012,"Counseling - CCB","1012 - Counseling - CCB"]
[1013,"Admin","1013 - Admin"]
[1014,"Development","1014 - Development"]
[1015,"Individual & Family Counseling - CCI","1015 - Individual & Family Counseling - CCI"]
[1016,"School Social Work - CCI","1016 - School Social Work - CCI"]
[1017,"Crisis Office - CCI","1017 - Crisis Office - CCI"]
[1018,"Christmas Store - CCI","1018 - Christmas Store - CCI"]
[1019,"Holy Family Shelter - CCI","1019 - Holy Family Shelter - CCI"]
[1020,"Refugee Resettlement - CCI","1020 - Refugee Resettlement - CCI"]
[1021,"Refugee Immigration - CCI","1021 - Refugee Immigration - CCI"]
[1022,"NYO After School - CCI","1022 - NYO After School - CCI"]
[1023,"NYO Summer Camp - CCI","1023 - NYO Summer Camp - CCI"]
[1024,"ADS A Caring Place - CCI","1024 - ADS A Caring Place - CCI"]
[1025,"RSVP - CCI","1025 - RSVP - CCI"]
[1026,"Senior Companion - CCI","1026 - Senior Companion - CCI"]
[1027,"St. Elizabeth Coleman - CCI","1027 - St. Elizabeth Coleman - CCI"]
[1028,"Disaster Relief - Charities","1028 - Disaster Relief - Charities"]
[1029,"Budget Basics - CCTC","1029 - Budget Basics - CCTC"]
[1030,"Martin's Cloak - CCTC","1030 - Martin's Cloak - CCTC"]
[1031,"Emergency Assistance - CCTC","1031 - Emergency Assistance - CCTC"]
[1032,"Table of Blessings - CCTC","1032 - Table of Blessings - CCTC"]
[1033,"Lifeline for Families - CCTC","1033 - Lifeline for Families - CCTC"]
[1034,"Perry County Food Coalition - CCTC","1034 - Perry County Food Coalition - CCTC"]
[1035,"Christmas Store - CCTH","1035 - Christmas Store - CCTH"]
[1036,"Bethany House - CCTH","1036 - Bethany House - CCTH"]
[1037,"Ryves Youth Center - CCTH","1037 - Ryves Youth Center - CCTH"]
[1038,"CCF - Endowments","1038 - CCF - Endowments"]
[1039,"CCF - CGAs","1039 - CCF - CGAs"]
[1040,"School Programs - CYO Camp","1040 - School Programs - CYO Camp"]
[1041,"Summer Programs - CYO Camp","1041 - Summer Programs - CYO Camp"]
[1042,"FY18-19 ONLY Athletics/Enrichment - CYO","1042 - FY18-19 ONLY Athletics/Enrichment - CYO"]
[1043,"Newspaper Operations","1043 - Newspaper Operations"]
[1044,"Newspaper Printing / Distribution","1044 - Newspaper Printing / Distribution"]
[1045,"Newspaper Advertising","1045 - Newspaper Advertising"]
[1046,"Newspaper Editorial","1046 - Newspaper Editorial"]
[1047,"Criterion Other - Cath. Center Support","1047 - Criterion Other - Cath. Center Support"]
[1048,"Criterion Other - Directory","1048 - Criterion Other - Directory"]
[1049,"Eliminations","1049 - Eliminations"]
[1050,"Central Office - MTCA","1050 - Central Office - MTCA"]
[1051,"Instructional Pre-K - MTCA","1051 - Instructional Pre-K - MTCA"]
[1052,"Instructional K-5 - MTCA","1052 - Instructional K-5 - MTCA"]
[1053,"Instructional Middle School - MTCA","1053 - Instructional Middle School - MTCA"]
[1054,"Athletics - MTCA","1054 - Athletics - MTCA"]
[1055,"Nutrition - MTCA","1055 - Nutrition - MTCA"]
[1056,"Facilities - MTCA","1056 - Facilities - MTCA"]
[1057,"Technology - MTCA","1057 - Technology - MTCA"]
[1058,"School Administration - MTCA","1058 - School Administration - MTCA"]
[1059,"Before/after care - MTCA","1059 - Before/after care - MTCA"]
[1060,"Kitchen - Fatima","1060 - Kitchen - Fatima"]
[1061,"Arch Programs - Fatima","1061 - Arch Programs - Fatima"]
[1062,"Fatima Programs - Fatima","1062 - Fatima Programs - Fatima"]
[1063,"Tobit - Fatima","1063 - Tobit - Fatima"]
[1064,"Other Denom. Programs - Fatima","1064 - Other Denom. Programs - Fatima"]
[1065,"Community Programs - Fatima",{"$f":"A68&\" - \"&B68","v":"1065 - Community Programs - Fatima"}]
[1066,"Private Retreats - Fatima","1066 - Private Retreats - Fatima"]
[1067,"FVL - Fatima","1067 - FVL - Fatima"]
[1068,"ADLF","1068 - ADLF"]
[1069,"Archives - Arch","1069 - Archives - Arch"]
[1070,"Catholic Center Forum - Arch","1070 - Catholic Center Forum - Arch"]
[1071,"Chancery Operations - Arch","1071 - Chancery Operations - Arch"]
[1072,"Home Mission Grant - Arch","1072 - Home Mission Grant - Arch"]
[1073,"Growth and Expansion Grant - Arch","1073 - Growth and Expansion Grant - Arch"]
[1074,"James P. Scott Grant - Arch","1074 - James P. Scott Grant - Arch"]
[1075,"Making a Difference - Arch","1075 - Making a Difference - Arch"]
[1076,"Queen and Divine Mercy Grant - Arch","1076 - Queen and Divine Mercy Grant - Arch"]
[1077,"Indy Education Assessment & Grant - Arch","1077 - Indy Education Assessment & Grant - Arch"]
[1078,"Clergy Retirement and Benefits - Arch","1078 - Clergy Retirement and Benefits - Arch"]
[1079,"Mission Office - Arch","1079 - Mission Office - Arch"]
[1080,"Catholic Relief Services (CRS) - Arch","1080 - Catholic Relief Services (CRS) - Arch"]
[1081,"Campaign for Human Devel. (CCHD) - Arch","1081 - Campaign for Human Devel. (CCHD) - Arch"]
[1082,"Charities Admin (Secretariat) - Arch","1082 - Charities Admin (Secretariat) - Arch"]
[1083,"Clergy Office - Arch","1083 - Clergy Office - Arch"]
[1084,"Deacon Formation - Arch","1084 - Deacon Formation - Arch"]
[1085,"Permanent Deacon Office - Arch","1085 - Permanent Deacon Office - Arch"]
[1086,"Vocations Office - Arch","1086 - Vocations Office - Arch"]
[1087,"Clergy Continuing Education - Arch","1087 - Clergy Continuing Education - Arch"]
[1088,"Lilly Grant - Arch","1088 - Lilly Grant - Arch"]
[1089,"Communications - Arch","1089 - Communications - Arch"]
[1090,"Pilgrimage (Communications) - Arch","1090 - Pilgrimage (Communications) - Arch"]
[1091,"Finance - Arch","1091 - Finance - Arch"]
[1092,"Accounting Services - Arch","1092 - Accounting Services - Arch"]
[1093,"Information Systems - Arch","1093 - Information Systems - Arch"]
[1094,"Management Services - Catholic Center","1094 - Management Services - Catholic Center"]
[1095,"Management Services - Xavier Building","1095 - Management Services - Xavier Building"]
[1096,"Management Services - IPI - Arch","1096 - Management Services - IPI - Arch"]
[1097,"Management Services - Mail Room - Arch","1097 - Management Services - Mail Room - Arch"]
[1098,"Management Services - AB Residence","1098 - Management Services - AB Residence"]
[1099,"Management Services - Parish Site Proper","1099 - Management Services - Parish Site Proper"]
[1100,"Management Services - Cathedral - Arch","1100 - Management Services - Cathedral - Arch"]
[1101,"Human Resources - Arch","1101 - Human Resources - Arch"]
[1102,"Professional Development - Arch","1102 - Professional Development - Arch"]
[1103,"OCS - Arch","1103 - OCS - Arch"]
[1104,"Latino Outreach (OCS) - Arch","1104 - Latino Outreach (OCS) - Arch"]
[1105,"TCE Grants - Arch","1105 - TCE Grants - Arch"]
[1106,"Educator Formation - Arch","1106 - Educator Formation - Arch"]
[1107,"21st Century Grant - Arch","1107 - 21st Century Grant - Arch"]
[1108,"CCSV - Arch","1108 - CCSV - Arch"]
[1109,"A Promise to Keep - Arch","1109 - A Promise to Keep - Arch"]
[1110,"Stewardship and Development - Arch","1110 - Stewardship and Development - Arch"]
[1111,"UCA (OSD) - Arch","1111 - UCA (OSD) - Arch"]
[1112,"CCF Admin - Arch","1112 - CCF Admin - Arch"]
[1113,"Clergy Health Plan - Arch","1113 - Clergy Health Plan - Arch"]
[1114,"Lay Health Plan - Arch","1114 - Lay Health Plan - Arch"]
[1115,"Property Insurance Plan - Arch","1115 - Property Insurance Plan - Arch"]
[1116,"Lay Retirement & Misc. Benefits-Arch","1116 - Lay Retirement & Misc. Benefits-Arch"]
[1117,"Archdiocesan Purchasing Dept. - Arch","1117 - Archdiocesan Purchasing Dept. - Arch"]
[1118,"Pastoral Ministries - Arch","1118 - Pastoral Ministries - Arch"]
[1119,"Young Adult Ministry Admin - Arch","1119 - Young Adult Ministry Admin - Arch"]
[1120,"Youth Ministry Admin - Arch","1120 - Youth Ministry Admin - Arch"]
[1121,"NCYC Hosts - Arch","1121 - NCYC Hosts - Arch"]
[1122,"Intercultural Ministry Admin - Arch","1122 - Intercultural Ministry Admin - Arch"]
[1123,"Human Life and Dignity Admin HLD - Arch","1123 - Human Life and Dignity Admin HLD - Arch"]
[1124,"Marriage and Family Life Admin MFL -Arch","1124 - Marriage and Family Life Admin MFL -Arch"]
[1125,"Hospice Palliative Care HLD - Arch","1125 - Hospice Palliative Care HLD - Arch"]
[1126,"Lay Ministry - Arch","1126 - Lay Ministry - Arch"]
[1127,"A Generation of Hope Scholarship - Arch","1127 - A Generation of Hope Scholarship - Arch"]
[1128,"Ecumenism - Arch","1128 - Ecumenism - Arch"]
[1129,"Tribunal - Arch",{"$f":"A132&\" - \"&B132","v":"1129 - Tribunal - Arch"}]
[1130,"Bishop Brute Sainthood Cause - Arch","1130 - Bishop Brute Sainthood Cause - Arch"]
[1131,"Office of Worship - Arch","1131 - Office of Worship - Arch"]
[1132,"Office of Catechesis - Arch","1132 - Office of Catechesis - Arch"]
[1133,"Special Needs Ministry - Arch","1133 - Special Needs Ministry - Arch"]
[1134,"ECHO Program - Arch","1134 - ECHO Program - Arch"]
[1135,"Catechetical Leadership Fund - Arch","1135 - Catechetical Leadership Fund - Arch"]
[1136,"Totus Tuus (Catechesis) - Arch","1136 - Totus Tuus (Catechesis) - Arch"]
[1137,"United Catholic Appeal 16-17 - Arch","1137 - United Catholic Appeal 16-17 - Arch"]
[1138,"United Catholic Appeal 17-18 - Arch","1138 - United Catholic Appeal 17-18 - Arch"]
[1139,"United Catholic Appeal 18-19 - Arch","1139 - United Catholic Appeal 18-19 - Arch"]
[1140,"Print Services - Arch","1140 - Print Services - Arch"]
[1141,"Young Adult - Programs - Arch","1141 - Young Adult - Programs - Arch"]
[1142,"Youth Ministry - Programs - Arch","1142 - Youth Ministry - Programs - Arch"]
[1143,"Hispanic Ministry - Arch","1143 - Hispanic Ministry - Arch"]
[1144,"Health Ministries HLD - Arch","1144 - Health Ministries HLD - Arch"]
[1145,"Marriage Prep MFL - Arch","1145 - Marriage Prep MFL - Arch"]
[1147,"Intercultural Pastoral Institute - Arch","1147 - Intercultural Pastoral Institute - Arch"]
[1148,"Project Rachel HLD - Arch","1148 - Project Rachel HLD - Arch"]
[1149,"Natural Family Planning MFL - Arch","1149 - Natural Family Planning MFL - Arch"]
[1151,"Asian Ministry - Arch","1151 - Asian Ministry - Arch"]
[1152,"Corrections Ministry HLD - Arch","1152 - Corrections Ministry HLD - Arch"]
[1154,"Butler Newman Center - Arch","1154 - Butler Newman Center - Arch"]
[1155,"Black Catholic Ministry - Arch","1155 - Black Catholic Ministry - Arch"]
[1156,"Birthline HLD - Arch","1156 - Birthline HLD - Arch"]
[1157,"Marriage and Family Enrichment MFL- Arch","1157 - Marriage and Family Enrichment MFL- Arch"]
[1158,"French-speaking Apostolate - Arch","1158 - French-speaking Apostolate - Arch"]
[1162,"Healing Ministry Divorce/Grief MFL -Arch","1162 - Healing Ministry Divorce/Grief MFL -Arch"]
[1163,"Early Childhood - SMCC","1163 - Early Childhood - SMCC"]
[1164,"Rectory - SECC","1164 - Rectory - SECC"]
[1165,"Family Stability Program - SECC","1165 - Family Stability Program - SECC"]
[1166,"Counseling - Residential - SECC","1166 - Counseling - Residential - SECC"]
[1167,"Emergency Shelter - SECC","1167 - Emergency Shelter - SECC"]
[1168,"Affordable Supportive Housing - SECC","1168 - Affordable Supportive Housing - SECC"]
[1169,"Counseling - Outreach - SECC","1169 - Counseling - Outreach - SECC"]
[1170,"Adoption - SECC","1170 - Adoption - SECC"]
[1171,"Marie's Community Distribution - SECC","1171 - Marie's Community Distribution - SECC"]
[1172,"Supported Living Program - SECC","1172 - Supported Living Program - SECC"]
[1173,"Court Appointed Advocate Program - SECC","1173 - Court Appointed Advocate Program - SECC"]
[1174,"Foodbank - Terre Haute","1174 - Foodbank - Terre Haute"]
[1175,"Counseling - School - SECC","1175 - Counseling - School - SECC"]
[1176,"Secretariat Heads Cathedraticum - Arch","1176 - Secretariat Heads Cathedraticum - Arch"]
[1177,"United Catholic Appeal 19-20 - Arch","1177 - United Catholic Appeal 19-20 - Arch"]
[1179,"Propagation of Faith Office - Arch","1179 - Propagation of Faith Office - Arch"]
[1180,"Propagation of Faith - Mass Stipends","1180 - Propagation of Faith - Mass Stipends"]
[1181,"Deanery Projects - CCI","1181 - Deanery Projects - CCI"]
[1182,"OCS - School Software - Arch","1182 - OCS - School Software - Arch"]
[1183,"Housekeeping - Fatima","1183 - Housekeeping - Fatima"]
[1184,"Maintenance - Fatima","1184 - Maintenance - Fatima"]
[1185,"Instructional Resource (SpEd, ESL) MTCA",{"$f":"A181&\" - \"&B181","v":"1185 - Instructional Resource (SpEd, ESL) MTCA"}]
[1186,"Safe and Sacred Program - Arch","1186 - Safe and Sacred Program - Arch"]
[1187,"Legacy For Our Mission Campaign (LFOM)","1187 - Legacy For Our Mission Campaign (LFOM)"]
[1188,"Pooled Checking Program - Arch","1188 - Pooled Checking Program - Arch"]
[1189,"Co-Workers in the Vineyard - Arch","1189 - Co-Workers in the Vineyard - Arch"]
[1190,"Social Services - MTCA","1190 - Social Services - MTCA"]
[1191,"Caregiver Support - CCI","1191 - Caregiver Support - CCI"]
[1193,"Athletics (General) - CYO","1193 - Athletics (General) - CYO"]
[1194,"Basketball - CYO Athletics","1194 - Basketball - CYO Athletics"]
[1195,"Volleyball - CYO Athletics","1195 - Volleyball - CYO Athletics"]
[1196,"Football - CYO Athletics","1196 - Football - CYO Athletics"]
[1197,"Kickball - CYO Athletics","1197 - Kickball - CYO Athletics"]
[1198,"Soccer - CYO Athletics","1198 - Soccer - CYO Athletics"]
[1199,"Cross Country - CYO Athletics","1199 - Cross Country - CYO Athletics"]
[1200,"Track & Field - CYO Athletics","1200 - Track & Field - CYO Athletics"]
[1201,"Wrestling - CYO Athletics","1201 - Wrestling - CYO Athletics"]
[1202,"Baseball - CYO Athletics","1202 - Baseball - CYO Athletics"]
[1203,"Softball - CYO Athletics","1203 - Softball - CYO Athletics"]
[1204,"Enrichment (General) - CYO","1204 - Enrichment (General) - CYO"]
[1205,"Music Contest - CYO Enrichment","1205 - Music Contest - CYO Enrichment"]
[1206,"Chess - CYO Enrichment","1206 - Chess - CYO Enrichment"]
[1207,"Science Fair - CYO Enrichment","1207 - Science Fair - CYO Enrichment"]
[1208,"Legacy Gala Event - Arch","1208 - Legacy Gala Event - Arch"]
[1209,"Instructional - Special Areas - MTCA","1209 - Instructional - Special Areas - MTCA"]
[1210,"United Catholic Appeal 20-21 - Arch","1210 - United Catholic Appeal 20-21 - Arch"]
[1211,"United Catholic Appeal 21-22 - Arch","1211 - United Catholic Appeal 21-22 - Arch"]
[1212,"United Catholic Appeal 22-23 - Arch","1212 - United Catholic Appeal 22-23 - Arch"]
[9999,"N/A - Balance Sheet Only","9999 - N/A - Balance Sheet Only"]

{"sheet":"Account","index":5,"n_rows":11,"n_cols":1,"rows_kept":11,"cut":false,"hidden":false,"merged":[]}
[]
["50000 Wages - Lay"]
["50001 Wages - Clergy"]
["50002 Wages - Religious"]
["50003 Wages - Seasonal"]
["50004 Wages - Temporary (Staffing Co)"]
["50005 Wages - Allocated"]
["50006 Stipends"]
["50007 SECA Reimbursement"]
["50108 Catholic School Tuition Reimbursement - EE Benefit"]
["50109 Adoption Reimbursement - EE Benefit"]

{"sheet":"Grant","index":6,"n_rows":360,"n_cols":3,"rows_kept":360,"cut":false,"hidden":false,"merged":[]}
["Grant ID","Grant Name","Grant ID and Name"]
[]
["10004","IN Special Education (NDAA - MTCA)",{"$f":"_xlfn.CONCAT(A3, \" \",B3)","v":"10004 IN Special Education (NDAA - MTCA)"}]
["10005","IN Formative Assessment (NDAA - MTCA)",{"$f":"_xlfn.CONCAT(A4, \" \",B4)","v":"10005 IN Formative Assessment (NDAA - MTCA)"}]
["10006","Refugee Match Grant Non-Reimbursable","10006 Refugee Match Grant Non-Reimbursable"]
["10006R","Refugee Match Grant Reimbursable","10006R Refugee Match Grant Reimbursable"]
["10007","Refugee Support Services (State) Non-Reimbursable","10007 Refugee Support Services (State) Non-Reimbursable"]
["10007R","Refugee Support Services (State) Reimbursable","10007R Refugee Support Services (State) Reimbursable"]
["10008","Refugee Preferred Communities Non-Reimbursable","10008 Refugee Preferred Communities Non-Reimbursable"]
["10008R","Refugee Preferred Communities Reimbursable","10008R Refugee Preferred Communities Reimbursable"]
["10009","Refugee Family Separation","10009 Refugee Family Separation"]
["10011","National Family Caregiver Support, Title III, Part E","10011 National Family Caregiver Support, Title III, Part E"]
["10013","Senior Companion Program Non-Reimbursable","10013 Senior Companion Program Non-Reimbursable"]
["10013R","Senior Companion Program Reimbursable","10013R Senior Companion Program Reimbursable"]
["10014","Retired And Senior Volunteer Program Non-Reimbursable","10014 Retired And Senior Volunteer Program Non-Reimbursable"]
["10014R","Retired And Senior Volunteer Program Reimbursable","10014R Retired And Senior Volunteer Program Reimbursable"]
["10015","Summer Food Service Program For Children DO NOT USE","10015 Summer Food Service Program For Children DO NOT USE"]
["10016","Special Milk Program For Children","10016 Special Milk Program For Children"]
["10017","Emergency Food Assistance Program (Administrative Costs)","10017 Emergency Food Assistance Program (Administrative Costs)"]
["10018","Environmental Quality Incentives Program","10018 Environmental Quality Incentives Program"]
["10019","Child And Adult Care Food Program DO NOT USE","10019 Child And Adult Care Food Program DO NOT USE"]
["10020","Emergency Solutions Grant Program","10020 Emergency Solutions Grant Program"]
["10022","Enhanced Mobility Of Seniors And Individuals With Disabilities","10022 Enhanced Mobility Of Seniors And Individuals With Disabilities"]
["10023","Emergency Food And Shelter National Board Program","10023 Emergency Food And Shelter National Board Program"]
["10024","Veterans State Nursing Home Care","10024 Veterans State Nursing Home Care"]
["10025","Education For Homeless Children And Youth","10025 Education For Homeless Children And Youth"]
["10026","Twenty-First Century Community Learning Centers","10026 Twenty-First Century Community Learning Centers"]
["10027","Refugee R & P Non-Reimbursable","10027 Refugee R & P Non-Reimbursable"]
["10027R","Refugee R & P Reimbursable","10027R Refugee R & P Reimbursable"]
["10028","Juvenile Mentoring Program","10028 Juvenile Mentoring Program"]
["10029","Community Development Block Grants/Entitlement Grants - 2010/2017","10029 Community Development Block Grants/Entitlement Grants - 2010/2017"]
["10030","Crime Victim Assistance","10030 Crime Victim Assistance"]
["10031","CCUSA - 2011 Spring Storms","10031 CCUSA - 2011 Spring Storms"]
["10032","CCUSA - 2011 Tornadoes","10032 CCUSA - 2011 Tornadoes"]
["10033","CCUSA - 2013 Disasters","10033 CCUSA - 2013 Disasters"]
["10034","Disaster Relief - Henryville/Clark County","10034 Disaster Relief - Henryville/Clark County"]
["10035","Disaster Relief - Hurricane Harvey","10035 Disaster Relief - Hurricane Harvey"]
["10036","Disaster Relief - Hurricane Irma","10036 Disaster Relief - Hurricane Irma"]
["10037","Disaster Relief - Puerto Rico 2017","10037 Disaster Relief - Puerto Rico 2017"]
["10038","Disaster Relief - Mexico Earthquake","10038 Disaster Relief - Mexico Earthquake"]
["10039","Disaster Relief - Kokomo Tornado","10039 Disaster Relief - Kokomo Tornado"]
["10040","CCUSA - Dubois County Flood","10040 CCUSA - Dubois County Flood"]
["10041","CCUSA - Washington County Flood","10041 CCUSA - Washington County Flood"]
["10042","Jack Hopkins Grant - CCB","10042 Jack Hopkins Grant - CCB"]
["10043","Bloomington Realtor Grant - CCB","10043 Bloomington Realtor Grant - CCB"]
["10044","Community Foundation of Bloomington & Monroe County - CCB","10044 Community Foundation of Bloomington & Monroe County - CCB"]
["10045","Ronald McDonald House Grant - CCB","10045 Ronald McDonald House Grant - CCB"]
["10046","United Way of South Central IN - Becky's Place","10046 United Way of South Central IN - Becky's Place"]
["10047","Smithville Foundation - Becky's Place","10047 Smithville Foundation - Becky's Place"]
["10048","Bloomington Bicycle Club - Becky's Place","10048 Bloomington Bicycle Club - Becky's Place"]
["10049","Hoosier Uplands - Becky's Place","10049 Hoosier Uplands - Becky's Place"]
["10050","Sophia Travis Grant - CCB","10050 Sophia Travis Grant - CCB"]
["10051","Carson Rent/Utilities - Crisis Office","10051 Carson Rent/Utilities - Crisis Office"]
["10052","St Vincent de Paul Food - HFS","10052 St Vincent de Paul Food - HFS"]
["10053","Infant Supplies - SEC","10053 Infant Supplies - SEC"]
["10054","Assistance - rent, food, utilities - SEC","10054 Assistance - rent, food, utilities - SEC"]
["10055","Parent Support - SEC","10055 Parent Support - SEC"]
["10056","Everett's Drive for Hope - SEC","10056 Everett's Drive for Hope - SEC"]
["10057","Birth Mother - SEC","10057 Birth Mother - SEC"]
["10058","Children Needs - HFS","10058 Children Needs - HFS"]
["10059","Staff Recognition - HFS","10059 Staff Recognition - HFS"]
["10060","St. Vincent Charity Care - HFS","10060 St. Vincent Charity Care - HFS"]
["10061","Trinity Church - HFS","10061 Trinity Church - HFS"]
["10062","Trinity Convent - HFS","10062 Trinity Convent - HFS"]
["10063","Trinity Garage - HFS","10063 Trinity Garage - HFS"]
["10064","Lilly Foundation - Christmas Store","10064 Lilly Foundation - Christmas Store"]
["10065","2017 Braun Handicap Van - ACP","10065 2017 Braun Handicap Van - ACP"]
["10066","08 INDOT Bus - ACP",{"$f":"_xlfn.CONCAT(A68, \" \",B68)","v":"10066 08 INDOT Bus - ACP"}]
["10067","Enhanced Mobility of Seniors and Individuals with Disabilities - 2016 Mini Bus ACP","10067 Enhanced Mobility of Seniors and Individuals with Disabilities - 2016 Mini Bus ACP"]
["10068","Refugee Unrestricted Gifts","10068 Refugee Unrestricted Gifts"]
["10069","Lilly Technology - NYO","10069 Lilly Technology - NYO"]
["10070","Special Projects Fund - Fatima","10070 Special Projects Fund - Fatima"]
["10071","Our Trails Fund - Fatima","10071 Our Trails Fund - Fatima"]
["10072","Fatima Volunteer League Wish List - Fatima","10072 Fatima Volunteer League Wish List - Fatima"]
["10073","StepUp (Formerly ISP Genesis Fund) - Fatima","10073 StepUp (Formerly ISP Genesis Fund) - Fatima"]
["10074","Being & Belonging - Fatima","10074 Being & Belonging - Fatima"]
["10075","Genesis Fund - Fatima","10075 Genesis Fund - Fatima"]
["10076","Parish Assistance Fund - CYO","10076 Parish Assistance Fund - CYO"]
["10077","Parish Participant Fund - CYO","10077 Parish Participant Fund - CYO"]
["10078","Campership Appeal - CYO Camp","10078 Campership Appeal - CYO Camp"]
["10079","Angel Campership - CYO Camp","10079 Angel Campership - CYO Camp"]
["10080","Inclusion Grant - CYO Camp","10080 Inclusion Grant - CYO Camp"]
["10081","Endowment - CYO Camp","10081 Endowment - CYO Camp"]
["10082","SKJV Central Catholic PreK addition (NDAA - MTCA)","10082 SKJV Central Catholic PreK addition (NDAA - MTCA)"]
["10083","PNC Grow Up Great FYE2018 (NDAA - MTCA)","10083 PNC Grow Up Great FYE2018 (NDAA - MTCA)"]
["10084","Indiana Sports Corp FYE2018 (NDAA - MTCA)","10084 Indiana Sports Corp FYE2018 (NDAA - MTCA)"]
["10085","Refugee Preventive Health Reimbursable","10085 Refugee Preventive Health Reimbursable"]
["10087","Realtor Foundation - HFS","10087 Realtor Foundation - HFS"]
["10088","Summer Camp CICF - HFS","10088 Summer Camp CICF - HFS"]
["10089","Summer Camp Lilly - HFS","10089 Summer Camp Lilly - HFS"]
["10090","Lilly Grant Phase 1 - Empowering Pastoral Leaders","10090 Lilly Grant Phase 1 - Empowering Pastoral Leaders"]
["10091","Witchger - CICF - Crisis Office","10091 Witchger - CICF - Crisis Office"]
["10092","CCUSA - 2018 Floods","10092 CCUSA - 2018 Floods"]
["10093","Spirit of Service - CCI","10093 Spirit of Service - CCI"]
["10094","Church in Latin America - Second Collection","10094 Church in Latin America - Second Collection"]
["10095","Membership Sunday - Second Collection","10095 Membership Sunday - Second Collection"]
["10096","Black and Indian Missions - Second Collection","10096 Black and Indian Missions - Second Collection"]
["10097","Eastern Europe - Second Collection","10097 Eastern Europe - Second Collection"]
["10098","Catholic Relief Services - Second Collection","10098 Catholic Relief Services - Second Collection"]
["10099","Church in Africa - Second Collection","10099 Church in Africa - Second Collection"]
["10100","Holy Places - Second Collection","10100 Holy Places - Second Collection"]
["10101","Catholic Home Missions - Second Collection","10101 Catholic Home Missions - Second Collection"]
["10102","Catholic Communications - Second Collection","10102 Catholic Communications - Second Collection"]
["10103","Education of Future Archdiocesan Priests - Second Collection","10103 Education of Future Archdiocesan Priests - Second Collection"]
["10104","Peter's Pence Works of the Holy Father - Second Collection","10104 Peter's Pence Works of the Holy Father - Second Collection"]
["10105","Catholic University of America - Second Collection","10105 Catholic University of America - Second Collection"]
["10106","World Mission Sunday - Second Collection","10106 World Mission Sunday - Second Collection"]
["10107","Military Services - Second Collection","10107 Military Services - Second Collection"]
["10108","Campaign for Human Development - Second Collection","10108 Campaign for Human Development - Second Collection"]
["10109","Retirement Fund for Religious - Second Collection","10109 Retirement Fund for Religious - Second Collection"]
["10110","Missionary Co-op Plan - Second Collection","10110 Missionary Co-op Plan - Second Collection"]
["10110A","Franciscan Province of Our Lady of Guadalupe","10110A Franciscan Province of Our Lady of Guadalupe"]
["10110AA","Kigoma Fund, Inc.","10110AA Kigoma Fund, Inc."]
["10110AB","Catholic Diocese of Jackson","10110AB Catholic Diocese of Jackson"]
["10110AC","Province of Our Lady of Consolation, Inc","10110AC Province of Our Lady of Consolation, Inc"]
["10110AD","Franciscan Missionary Sisters of Africa","10110AD Franciscan Missionary Sisters of Africa"]
["10110AE","Diocese of Kathamangalam","10110AE Diocese of Kathamangalam"]
["10110AF","Diocese of Palayamkottai","10110AF Diocese of Palayamkottai"]
["10110AG","Friar Servants of Mary","10110AG Friar Servants of Mary"]
["10110AH","Community of St. Paul","10110AH Community of St. Paul"]
["10110AI","Diocese of Moshi - Tanzania","10110AI Diocese of Moshi - Tanzania"]
["10110AJ","The Redemptorists Denver Province Inc.","10110AJ The Redemptorists Denver Province Inc."]
["10110AK","Poor Handmaids of Jesus Christ","10110AK Poor Handmaids of Jesus Christ"]
["10110AL","MaryKnoll Fathers and Brothers","10110AL MaryKnoll Fathers and Brothers"]
["10110AM","Congregation of the Rogationist Fathers","10110AM Congregation of the Rogationist Fathers"]
["10110AN","Catholic Diocese of Auchi","10110AN Catholic Diocese of Auchi"]
["10110AO","Catholic Diocese of Byumba","10110AO Catholic Diocese of Byumba"]
["10110AP","Missionary Daughters of the Eternal Father","10110AP Missionary Daughters of the Eternal Father"]
["10110AQ","Adorer Missionary Sisters of the Poor","10110AQ Adorer Missionary Sisters of the Poor"]
["10110AR","Handmaids of Our Lady of Mount Carmel","10110AR Handmaids of Our Lady of Mount Carmel"]
["10110AS","Glenmary Home Missioners-Priests","10110AS Glenmary Home Missioners-Priests"]
["10110AT","Archdiocese of Trivandrum","10110AT Archdiocese of Trivandrum"]
["10110AU","Heralds of Good News","10110AU Heralds of Good News"]
["10110AV","Foundation for Children in Need","10110AV Foundation for Children in Need"]
["10110AW","Society of Missionaries of St. Francis Xavier","10110AW Society of Missionaries of St. Francis Xavier"]
["10110AX","La Salette Missionaries","10110AX La Salette Missionaries"]
["10110AY","Sisters of Charity of Seton Hill","10110AY Sisters of Charity of Seton Hill"]
["10110AZ","Diocese of Long Xuyen","10110AZ Diocese of Long Xuyen"]
["10110B","Franciscan Missionary Bros. of North America","10110B Franciscan Missionary Bros. of North America"]
["10110BA","Daughters of Mary Mother of Mercy","10110BA Daughters of Mary Mother of Mercy"]
["10110BB","Diocese of Zanzibar-Tanzania","10110BB Diocese of Zanzibar-Tanzania"]
["10110BC","Society of the Holy Spirit","10110BC Society of the Holy Spirit"]
["10110BD","SPEC-Circus Ministry","10110BD SPEC-Circus Ministry"]
["10110BE","Missionary Fraternity of Mary","10110BE Missionary Fraternity of Mary"]
["10110BF","Discalced Carmelite Friars","10110BF Discalced Carmelite Friars"]
["10110BG","Archdiocese of Juba","10110BG Archdiocese of Juba"]
["10110BH","Diocese of Lexington, KY","10110BH Diocese of Lexington, KY"]
["10110BI","Comboni Mission Sisters","10110BI Comboni Mission Sisters"]
["10110BJ","Diocese of Nakuru","10110BJ Diocese of Nakuru"]
["10110BK","Passionist Missionaries of Papua","10110BK Passionist Missionaries of Papua"]
["10110BL","St. Francis Ministry-Little Sisters of St. Francis","10110BL St. Francis Ministry-Little Sisters of St. Francis"]
["10110BM","Assumption Sisters of Nairobi","10110BM Assumption Sisters of Nairobi"]
["10110BN","Catholic Eparchy of Keren","10110BN Catholic Eparchy of Keren"]
["10110BO","Archdiocese of Mbarara","10110BO Archdiocese of Mbarara"]
["10110BP","Sisters of the Child Jesus","10110BP Sisters of the Child Jesus"]
["10110BQ","Sisters of Charity of Nazareth","10110BQ Sisters of Charity of Nazareth"]
["10110BR","Catechetical Sisters of Arogyamatha","10110BR Catechetical Sisters of Arogyamatha"]
["10110BS","Diocese of Gumaca","10110BS Diocese of Gumaca"]
["10110BT","Daughters of Mary - Tabora","10110BT Daughters of Mary - Tabora"]
["10110BU","Benedictine Sisters of St. Agnes","10110BU Benedictine Sisters of St. Agnes"]
["10110BV","Prelature of Esquel","10110BV Prelature of Esquel"]
["10110BW","Little Sisters of St. Francis of Assisi","10110BW Little Sisters of St. Francis of Assisi"]
["10110BX","Sisters of Mary Immaculate of Nyeri","10110BX Sisters of Mary Immaculate of Nyeri"]
["10110BY","Dominican Sisters of St. Catherine of Siena","10110BY Dominican Sisters of St. Catherine of Siena"]
["10110BZ","Diocese of Muranga","10110BZ Diocese of Muranga"]
["10110C","Glenmary Home Missioners-Sisters","10110C Glenmary Home Missioners-Sisters"]
["10110CA","Vincentian Congregation – St. Joseph Province","10110CA Vincentian Congregation – St. Joseph Province"]
["10110CB","Diocese of Guntur","10110CB Diocese of Guntur"]
["10110CC","Missionaries of St. Francis de Sales","10110CC Missionaries of St. Francis de Sales"]
["10110CD","Diocese of Tanga","10110CD Diocese of Tanga"]
["10110CE","Diocese of Obala","10110CE Diocese of Obala"]
["10110CF","Carmelite Nuns of the Holy Trinity","10110CF Carmelite Nuns of the Holy Trinity"]
["10110CG","Mary Queen of Heaven Missionaries","10110CG Mary Queen of Heaven Missionaries"]
["10110CH","Archdiocese of Kampala-Uganda","10110CH Archdiocese of Kampala-Uganda"]
["10110CI","Diocese of Malindi-Kenya","10110CI Diocese of Malindi-Kenya"]
["10110CJ","Congregation of the Sisters of St. Michael the Archangel","10110CJ Congregation of the Sisters of St. Michael the Archangel"]
["10110CK","Missionary Sisters of Divine Providence","10110CK Missionary Sisters of Divine Providence"]
["10110CL","Sisters of St. Francis Oldenburg","10110CL Sisters of St. Francis Oldenburg"]
["10110CM","School Sisters of St. Francis","10110CM School Sisters of St. Francis"]
["10110CN","Sisters of St. Joseph of Carondelet","10110CN Sisters of St. Joseph of Carondelet"]
["10110CO","Archdiocese of Capiz - Philippines","10110CO Archdiocese of Capiz - Philippines"]
["10110CP","Archdiocese of Kumasi - Ghana","10110CP Archdiocese of Kumasi - Ghana"]
["10110CQ","Archdiocese of Monrovia – Liberia","10110CQ Archdiocese of Monrovia – Liberia"]
["10110CR","Diocese of Eldoret – Kenya","10110CR Diocese of Eldoret – Kenya"]
["10110CS","Vincentian Congregation – Marymatha Province","10110CS Vincentian Congregation – Marymatha Province"]
["10110CT","Vincentian Congregation-Marymatha Province","10110CT Vincentian Congregation-Marymatha Province"]
["10110CU","Diocese of Eldoret-Kenya","10110CU Diocese of Eldoret-Kenya"]
["10110CV","Divine Word Missionaries","10110CV Divine Word Missionaries"]
["10110CW","Sisters of St. Francis of Tiffin","10110CW Sisters of St. Francis of Tiffin"]
["10110CX","Pallottine Missionary Center","10110CX Pallottine Missionary Center"]
["10110CY","Institute of the Incarnate Word","10110CY Institute of the Incarnate Word"]
["10110CZ","Vincentian Congregation – Marymatha Province","10110CZ Vincentian Congregation – Marymatha Province"]
["10110D","Piarist Priests","10110D Piarist Priests"]
["10110DA","Diocese of Dodoma","10110DA Diocese of Dodoma"]
["10110E","Missionary Sisters Servants of the Holy Spirit","10110E Missionary Sisters Servants of the Holy Spirit"]
["10110F","Diocese of Imphal","10110F Diocese of Imphal"]
["10110G","Adrian Dominican Sisters","10110G Adrian Dominican Sisters"]
["10110H","Ad Gentes Missionary Congregation","10110H Ad Gentes Missionary Congregation"]
["10110I","New Evangelization Sisters of Mother of Perpectual Help","10110I New Evangelization Sisters of Mother of Perpectual Help"]
["10110J","Franciscan Missions","10110J Franciscan Missions"]
["10110K","Diocese of Kitui","10110K Diocese of Kitui"]
["10110L","Carmelites of Mary Immaculate","10110L Carmelites of Mary Immaculate"]
["10110M","Franciscan Sisters of the Immaculate Conception","10110M Franciscan Sisters of the Immaculate Conception"]
["10110N","Diocese of Kumbo","10110N Diocese of Kumbo"]
["10110O","Diocese of Kable","10110O Diocese of Kable"]
["10110P","Archdiocese du Cap Haitien","10110P Archdiocese du Cap Haitien"]
["10110Q","Diocese of Ijebu-Ode","10110Q Diocese of Ijebu-Ode"]
["10110R","Holy Cross Foreign Mission Society Inc","10110R Holy Cross Foreign Mission Society Inc"]
["10110S","Brothers of Holy Cross Inc","10110S Brothers of Holy Cross Inc"]
["10110T","Notre Dame Global Missions","10110T Notre Dame Global Missions"]
["10110U","Pallottine Fathers and Brothers","10110U Pallottine Fathers and Brothers"]
["10110V","Comboni Missionaries","10110V Comboni Missionaries"]
["10110W","Congregation of the Blessed Sacrament","10110W Congregation of the Blessed Sacrament"]
["10110X","Diocese of Ikot Ekpene","10110X Diocese of Ikot Ekpene"]
["10110Y","Missionary Society of St. Paul, Inc","10110Y Missionary Society of St. Paul, Inc"]
["10110Z","Pontifical Institute for Foreign Missions, Inc","10110Z Pontifical Institute for Foreign Missions, Inc"]
["10111","Missionary Childhood Association - Second Collection","10111 Missionary Childhood Association - Second Collection"]
["10112","Rice Bowl - Second Collection","10112 Rice Bowl - Second Collection"]
["10113","NCYC 2019 - Arch","10113 NCYC 2019 - Arch"]
["10114","Arch Indy Teen Experience (AITE) 2018 - Arch","10114 Arch Indy Teen Experience (AITE) 2018 - Arch"]
["10115","World Youth Day 2019 - Arch","10115 World Youth Day 2019 - Arch"]
["10116","Holy Fire 2018-19 - Arch","10116 Holy Fire 2018-19 - Arch"]
["10117","Senior Retreat - Arch","10117 Senior Retreat - Arch"]
["10118","Rubber Duck Regatta - CCTH","10118 Rubber Duck Regatta - CCTH"]
["10119","Run for Hope - Becky's Place","10119 Run for Hope - Becky's Place"]
["10121","Foodbank Capital Campaign","10121 Foodbank Capital Campaign"]
["10122","Disasters Emergency Collection 2018 - Second Collection","10122 Disasters Emergency Collection 2018 - Second Collection"]
["10123","Mexican Earthquake Relief - Second Collection","10123 Mexican Earthquake Relief - Second Collection"]
["10124","Trinity Dome - Second Collection","10124 Trinity Dome - Second Collection"]
["10125","CCTH Annual Benefit","10125 CCTH Annual Benefit"]
["10126","Richardson Transportation - HFS","10126 Richardson Transportation - HFS"]
["10127","Colts Raffle - ACP","10127 Colts Raffle - ACP"]
["10129","St. Vincent Community Fund - CYO activities (NDAA - MTCA)","10129 St. Vincent Community Fund - CYO activities (NDAA - MTCA)"]
["10130","Student Fundraising 8th Grade Trip (NDAA - MTCA)","10130 Student Fundraising 8th Grade Trip (NDAA - MTCA)"]
["10131","Soup Bowl Benefit - THCCFB","10131 Soup Bowl Benefit - THCCFB"]
["10132","Bloomington Health Foundation - CCB","10132 Bloomington Health Foundation - CCB"]
["10133","National School Lunch Program NSLP LUNCH","10133 National School Lunch Program NSLP LUNCH"]
["10134","School Breakfast Program (SBP)","10134 School Breakfast Program (SBP)"]
["10136","Summer Food Service Program for Children (SFSP)","10136 Summer Food Service Program for Children (SFSP)"]
["10137","Child and Adult Care Food Program (CACFP)","10137 Child and Adult Care Food Program (CACFP)"]
["10138","Fresh Fruit and Vegetable Program (FFVP)","10138 Fresh Fruit and Vegetable Program (FFVP)"]
["10139","Bishop Brute Capital","10139 Bishop Brute Capital"]
["10140","Kendrick Foundation - CCI","10140 Kendrick Foundation - CCI"]
["10141","Taste & Share - CCTC","10141 Taste & Share - CCTC"]
["10142","National School Lunch Program NSLP SNACK","10142 National School Lunch Program NSLP SNACK"]
["10143","Desert Rose - CCI","10143 Desert Rose - CCI"]
["10144","Lilly Grant Phase 2 - Strengthening the Fabric of a Culture of Leadership Program","10144 Lilly Grant Phase 2 - Strengthening the Fabric of a Culture of Leadership Program"]
["10144A","Lilly Phase 2 - Project Director","10144A Lilly Phase 2 - Project Director"]
["10144B","Lilly Phase 2 - Project Assistant","10144B Lilly Phase 2 - Project Assistant"]
["10144C","Lilly Phase 2 - Clergy Educator","10144C Lilly Phase 2 - Clergy Educator"]
["10144D","Lilly Phase 2 - Advertising Ministerial Excellence Fund","10144D Lilly Phase 2 - Advertising Ministerial Excellence Fund"]
["10144E","Lilly Phase 2 - Promotions for Programs for Pastoral Leaders","10144E Lilly Phase 2 - Promotions for Programs for Pastoral Leaders"]
["10144F","Lilly Phase 2 - Supplies","10144F Lilly Phase 2 - Supplies"]
["10144G","Lilly Phase 2 - Fees - Chancery Level Executive Coaching","10144G Lilly Phase 2 - Fees - Chancery Level Executive Coaching"]
["10144H","Lilly Phase 2 - Fees - Leadership 360","10144H Lilly Phase 2 - Fees - Leadership 360"]
["10144I","Lilly Phase 2 - Fees - Archbishop 360","10144I Lilly Phase 2 - Fees - Archbishop 360"]
["10144J","Lilly Phase 2 - Gathering of 360 Participants/Coaches/Facilitators","10144J Lilly Phase 2 - Gathering of 360 Participants/Coaches/Facilitators"]
["10144K","Lilly Phase 2 - Fees - Peer Learning","10144K Lilly Phase 2 - Fees - Peer Learning"]
["10144L","Lilly Phase 2 - Fees - LEAD (U of Indy)","10144L Lilly Phase 2 - Fees - LEAD (U of Indy)"]
["10144M","Lilly Phase 2 - Fees - Parish Level Visioning/Planning","10144M Lilly Phase 2 - Fees - Parish Level Visioning/Planning"]
["10144N","Lilly Phase 2 - Fees - Online Certificate in Church Management","10144N Lilly Phase 2 - Fees - Online Certificate in Church Management"]
["10144O","Lilly Phase 2 - Fees - Toolbox Experiences","10144O Lilly Phase 2 - Fees - Toolbox Experiences"]
["10144P","Lilly Phase 2 - Consultant Travel and Lodging","10144P Lilly Phase 2 - Consultant Travel and Lodging"]
["10144Q","Lilly Phase 2 - Promoting Human Dignity in the Church Workplace","10144Q Lilly Phase 2 - Promoting Human Dignity in the Church Workplace"]
["10144R","Lilly Phase 2 - Leadership Summit","10144R Lilly Phase 2 - Leadership Summit"]
["10144S","Lilly Phase 2 - Other Conference Expenses","10144S Lilly Phase 2 - Other Conference Expenses"]
["10144T","Lilly Phase 2 - Multicultural Hispanic Lay Leadership Training","10144T Lilly Phase 2 - Multicultural Hispanic Lay Leadership Training"]
["10144U","Lilly Phase 2 - Ministerial Excellence Fund Donations (Rev) or Grants Awarded (Exp)","10144U Lilly Phase 2 - Ministerial Excellence Fund Donations (Rev) or Grants Awarded (Exp)"]
["10144V","Lilly Phase 2 - MEF Accumulated Donations Carryover from Phase 1","10144V Lilly Phase 2 - MEF Accumulated Donations Carryover from Phase 1"]
["10144W","Lilly Phase 2 - Unspent Grant Funds Carryover from Phase 1","10144W Lilly Phase 2 - Unspent Grant Funds Carryover from Phase 1"]
["10145","Fall Festival - CCI SEC","10145 Fall Festival - CCI SEC"]
["10146","Lilly Endowment - HFS","10146 Lilly Endowment - HFS"]
["10146A","Lilly Endowment - HFS - Facility","10146A Lilly Endowment - HFS - Facility"]
["10146B","Lilly Endowment - HFS - Security","10146B Lilly Endowment - HFS - Security"]
["10146C","Lilly Endowment - HFS - Marketing & Development","10146C Lilly Endowment - HFS - Marketing & Development"]
["10146D","Lilly Endowment - HFS - Data & IT","10146D Lilly Endowment - HFS - Data & IT"]
["10146E","Lilly Endowment - HFS - Staff","10146E Lilly Endowment - HFS - Staff"]
["10147","Great Spirits Summer Camp Summer 2019 (MTCA-NDAA)","10147 Great Spirits Summer Camp Summer 2019 (MTCA-NDAA)"]
["10148","Ascension Gift $205K Fall 2018","10148 Ascension Gift $205K Fall 2018"]
["10149","Social Emotional Learning Grant (MTCA - NDAA)","10149 Social Emotional Learning Grant (MTCA - NDAA)"]
["10150","Mardi Gras - Becky's Place","10150 Mardi Gras - Becky's Place"]
["10151","St. Vincent Healthcare Support Contribution (NDAA - MTCA)","10151 St. Vincent Healthcare Support Contribution (NDAA - MTCA)"]
["10152","Summer Food Service Program for Children (SFSP) (NDAA - MTCA) 16-17 ONLY","10152 Summer Food Service Program for Children (SFSP) (NDAA - MTCA) 16-17 ONLY"]
["10153","Child and Adult Care Food Program (CACFP) (NDAA - MTCA) 17-18 ONLY","10153 Child and Adult Care Food Program (CACFP) (NDAA - MTCA) 17-18 ONLY"]
["10154","National School Lunch Program NSLP LUNCH (NDAA - MTCA) 17-18 ONLY","10154 National School Lunch Program NSLP LUNCH (NDAA - MTCA) 17-18 ONLY"]
["10155","School Breakfast Program (SBP) (NDAA - MTCA) 17-18 ONLY","10155 School Breakfast Program (SBP) (NDAA - MTCA) 17-18 ONLY"]
["10156","Fresh Fruit and Vegetable Program (FFVP) (NDAA - MTCA) 17-18 ONLY","10156 Fresh Fruit and Vegetable Program (FFVP) (NDAA - MTCA) 17-18 ONLY"]
["10157","National School Lunch Program NSLP SNACK (NDAA - MTCA) 17-18 ONLY","10157 National School Lunch Program NSLP SNACK (NDAA - MTCA) 17-18 ONLY"]
["10158","Food Security Grant (MTCA - NDAA)","10158 Food Security Grant (MTCA - NDAA)"]
["10159","Wireless Zone Foundation for Giving - Becky's Place","10159 Wireless Zone Foundation for Giving - Becky's Place"]
["10160","FiSH Foodbank Grant","10160 FiSH Foodbank Grant"]
["10161","IN Choice Scholarships Program (Vouchers)","10161 IN Choice Scholarships Program (Vouchers)"]
["10162","IN Tax Credit Scholarships (SGOs)","10162 IN Tax Credit Scholarships (SGOs)"]
["10163","On My Way Pre-K (FSSA)","10163 On My Way Pre-K (FSSA)"]
["10164","Indy Preschool Scholarship Program (IndyPSP)","10164 Indy Preschool Scholarship Program (IndyPSP)"]
["10165","Simple Soup & Bread Luncheon - Crisis Office","10165 Simple Soup & Bread Luncheon - Crisis Office"]
["10166","Catholic Charities Breakfast - CCB","10166 Catholic Charities Breakfast - CCB"]
["10167","MTCA/NDAA Xtravaganza Fundraiser","10167 MTCA/NDAA Xtravaganza Fundraiser"]
["10168","100th Anniversary - Catholic Charities","10168 100th Anniversary - Catholic Charities"]
["10169","Community Coffee House - CCTC","10169 Community Coffee House - CCTC"]
["10170","World Refugee Day - CCI","10170 World Refugee Day - CCI"]
["10171","Pilot Sustainability Program - Arch","10171 Pilot Sustainability Program - Arch"]
["10172","Homeland Mission Project 2019 - Arch","10172 Homeland Mission Project 2019 - Arch"]
["10173","Disaster Relief - California Fire","10173 Disaster Relief - California Fire"]
["10174","Bob Coffman Golf - SEC","10174 Bob Coffman Golf - SEC"]
["10175","OSV Hispanic Ministry for Youth and Young Adults","10175 OSV Hispanic Ministry for Youth and Young Adults"]
["10176","Puzzle Fundraiser - Becky's Place","10176 Puzzle Fundraiser - Becky's Place"]
["10178","Patron Fund - CYO / CYO Camp","10178 Patron Fund - CYO / CYO Camp"]
["10179","Memorial Contributions - CYO / CYO Camp","10179 Memorial Contributions - CYO / CYO Camp"]
["10180","Legacy Fund - CYO","10180 Legacy Fund - CYO"]
["10181","Transitional Housing Services - HFS","10181 Transitional Housing Services - HFS"]
["10182","Outings - ACP","10182 Outings - ACP"]
["10183","Program Items - ACP","10183 Program Items - ACP"]
["10185","Campaign for Human Development (CCHD) - Arch","10185 Campaign for Human Development (CCHD) - Arch"]
["10186","United Catholic Appeal Restricted Activity","10186 United Catholic Appeal Restricted Activity"]
["10187","Corrections Ministry Restricted Gifts - Arch","10187 Corrections Ministry Restricted Gifts - Arch"]
["10188","Hospice and Palliative Care Restricted Activity - Arch","10188 Hospice and Palliative Care Restricted Activity - Arch"]
["10189","6/30/18 Net Assets w Donor Restriction released in FY2019","10189 6/30/18 Net Assets w Donor Restriction released in FY2019"]
["10190","A Promise to Keep (Restricted Activity) - Arch","10190 A Promise to Keep (Restricted Activity) - Arch"]
["10192","CASA Birthday in a Box - CCTC","10192 CASA Birthday in a Box - CCTC"]
["10193","Brute Kitchen Renovations 12/2017 Gift","10193 Brute Kitchen Renovations 12/2017 Gift"]
["10194","CGA - Restricted Balance",{"$f":"_xlfn.CONCAT(A322, \" \",B322)","v":"10194 CGA - Restricted Balance"}]
["10195","Endowment - Restricted Balance","10195 Endowment - Restricted Balance"]
["10196","Restricted Contributions for Endowment","10196 Restricted Contributions for Endowment"]
["10197","Play Therapy Restricted Gift 7/19 - CCB","10197 Play Therapy Restricted Gift 7/19 - CCB"]
["10198","Creation Care Ministry Startup Gifts","10198 Creation Care Ministry Startup Gifts"]
["10199","Hare Family Charitable Trust Literacy Lab (NDAA - MTCA)","10199 Hare Family Charitable Trust Literacy Lab (NDAA - MTCA)"]
["10200","Brute Renovations 12/2018 Gift","10200 Brute Renovations 12/2018 Gift"]
["10201","Disaster Relief - CCUSA 2018 Disasters","10201 Disaster Relief - CCUSA 2018 Disasters"]
["10202","WVCF Lift-gate Grant - THCCFB","10202 WVCF Lift-gate Grant - THCCFB"]
["10203","SMCC Opus Foundation Grant","10203 SMCC Opus Foundation Grant"]
["10204","Nutrition Program Carryover Balance (MTCA - NDAA)","10204 Nutrition Program Carryover Balance (MTCA - NDAA)"]
["10205","Horse Barn Construction Restricted Gift - CYO Camp","10205 Horse Barn Construction Restricted Gift - CYO Camp"]
["10206","Lake Shore Project - CYO Camp","10206 Lake Shore Project - CYO Camp"]
["10207","BINGO Fundraiser - CYO","10207 BINGO Fundraiser - CYO"]
["10208","TopGolf Fundraiser - CYO","10208 TopGolf Fundraiser - CYO"]
["10209","Hurricane Dorian Second Collection","10209 Hurricane Dorian Second Collection"]
["10210","Trade Mitigation Program","10210 Trade Mitigation Program"]
["10211","PNC Grow Up Great Grant - Pre-K Field Trips - MTCA","10211 PNC Grow Up Great Grant - Pre-K Field Trips - MTCA"]
["10212","Ascension Gift $371k Fall 2019","10212 Ascension Gift $371k Fall 2019"]
["10212A","Ascension - St. John the Evangelist Garden Door Ministry","10212A Ascension - St. John the Evangelist Garden Door Ministry"]
["10212B","Ascension - St. Raphael Catholic Medical Guild","10212B Ascension - St. Raphael Catholic Medical Guild"]
["10212C","Ascension - Catholic Charities - Seniors, Refugees, Underserved","10212C Ascension - Catholic Charities - Seniors, Refugees, Underserved"]
["10212D","Ascension - Holy Family Shelter","10212D Ascension - Holy Family Shelter"]
["10212E","Ascension - Sponsorship - World Refugee Day (CCI)","10212E Ascension - Sponsorship - World Refugee Day (CCI)"]
["10212F","Ascension - Archdiocese of Indianapolis (Low Income students to attend school)","10212F Ascension - Archdiocese of Indianapolis (Low Income students to attend school)"]
["10212G","Ascension - Human Sexuality Education","10212G Ascension - Human Sexuality Education"]
["10212H","Ascension - SPRED Religious Education","10212H Ascension - SPRED Religious Education"]
["10212I","Ascension - Legacy Gala","10212I Ascension - Legacy Gala"]
["10212J","Ascension - NDAA Extravaganza","10212J Ascension - NDAA Extravaganza"]
["10212K","Ascension - Celebrate Brute","10212K Ascension - Celebrate Brute"]
["10212L","Ascension - White Mass","10212L Ascension - White Mass"]
["10212M","Ascension - St. John the Evangelist Christkindl Market - Living Nativity","10212M Ascension - St. John the Evangelist Christkindl Market - Living Nativity"]
["10213","UWCI Family Opportunity Grant","10213 UWCI Family Opportunity Grant"]
["10214","Legacy Gala","10214 Legacy Gala"]
["10215","Celebrate Brute","10215 Celebrate Brute"]
["10216","Bloomington Health Foundation Transportation Grant","10216 Bloomington Health Foundation Transportation Grant"]
["10217","Strada $5k - SCP","10217 Strada $5k - SCP"]
["10218","Refugee Health Screening Transportation","10218 Refugee Health Screening Transportation"]
["10219","OSV Grant - IndyCatholic Young Adult Ministry Deanery Coordinator","10219 OSV Grant - IndyCatholic Young Adult Ministry Deanery Coordinator"]

{"sheet":"Activity","index":7,"n_rows":60,"n_cols":3,"rows_kept":60,"cut":false,"hidden":false,"merged":[]}
["Activity ID","Activity Name","Activity"]
[]
["100","Chess",{"$f":"_xlfn.CONCAT(A3, \"-\",B3)","v":"100-Chess"}]
["101","Cheer",{"$f":"_xlfn.CONCAT(A4, \"-\",B4)","v":"101-Cheer"}]
["102","Football","102-Football"]
["103","Kickball","103-Kickball"]
["104","Cross Country","104-Cross Country"]
["105","Girls Basketball","105-Girls Basketball"]
["106","Boys Basketball","106-Boys Basketball"]
["107","Basketball Tournament","107-Basketball Tournament"]
["108","Volleyball","108-Volleyball"]
["109","Co-ed Basketball","109-Co-ed Basketball"]
["110","Track","110-Track"]
["111","Soccer - Spring","111-Soccer - Spring"]
["116","Science Fair","116-Science Fair"]
["117","Soccer - Fall","117-Soccer - Fall"]
["118","Traditional (CYO Camp)","118-Traditional (CYO Camp)"]
["119","Explore (CYO Camp)","119-Explore (CYO Camp)"]
["121","Adventure (CYO Camp)","121-Adventure (CYO Camp)"]
["122","Adult Rec (CYO Camp)","122-Adult Rec (CYO Camp)"]
["123","Leadership - Girls (CYO Camp)","123-Leadership - Girls (CYO Camp)"]
["124","Mustang (CYO Camp)","124-Mustang (CYO Camp)"]
["125","Ethete Service (CYO Camp)","125-Ethete Service (CYO Camp)"]
["126","Ranch Hands (CYO Camp)","126-Ranch Hands (CYO Camp)"]
["127","Grasshopper Day Camp (CYO Camp)","127-Grasshopper Day Camp (CYO Camp)"]
["128","Sassafras A (CYO Camp)","128-Sassafras A (CYO Camp)"]
["129","Sassafras B (CYO Camp)","129-Sassafras B (CYO Camp)"]
["130","Junior Counselors (CYO Camp)","130-Junior Counselors (CYO Camp)"]
["131","Womens' Only Weekend (CYO Camp)","131-Womens' Only Weekend (CYO Camp)"]
["132","Mother/Daughter (CYO Camp)","132-Mother/Daughter (CYO Camp)"]
["133","Mother/Son (CYO Camp)","133-Mother/Son (CYO Camp)"]
["134","Father/Daughter (CYO Camp)","134-Father/Daughter (CYO Camp)"]
["135","Father/Son (CYO Camp)","135-Father/Son (CYO Camp)"]
["136","Fall Weekend (CYO Camp)","136-Fall Weekend (CYO Camp)"]
["137","Family Camp Fall (CYO Camp)","137-Family Camp Fall (CYO Camp)"]
["138","Family Camp Spring (CYO Camp)","138-Family Camp Spring (CYO Camp)"]
["139","Weekend Fall Break (CYO Camp)","139-Weekend Fall Break (CYO Camp)"]
["140","Camp Fest - Alumni (CYO Camp)","140-Camp Fest - Alumni (CYO Camp)"]
["141","Confirmation Day of Reflection (CYO Camp)","141-Confirmation Day of Reflection (CYO Camp)"]
["150","Co-ed - High School","150-Co-ed - High School"]
["151","Fall - 34","151-Fall - 34"]
["152","Fall - 56","152-Fall - 56"]
["153","Fall - Cadet","153-Fall - Cadet"]
["154","Spring - 34","154-Spring - 34"]
["155","Spring - 56","155-Spring - 56"]
["156","Spring - Cadet","156-Spring - Cadet"]
["157","Co-ed - 56","157-Co-ed - 56"]
["158","Co-ed - Cadet","158-Co-ed - Cadet"]
["159","Adult Meals - MTCA Nutrition","159-Adult Meals - MTCA Nutrition"]
["160","Student a la carte - MTCA Nutrition","160-Student a la carte - MTCA Nutrition"]
["161","Boys CYO Athletics","161-Boys CYO Athletics"]
["143","Boys - 34","143-Boys - 34"]
["145","Boys - 56","145-Boys - 56"]
["147","Boys - Cadet","147-Boys - Cadet"]
["149","Boys - High School","149-Boys - High School"]
["162","Girls CYO Athletics","162-Girls CYO Athletics"]
["142","Girls - 34","142-Girls - 34"]
["144","Girls - 56","144-Girls - 56"]
["146","Girls - Cadet","146-Girls - Cadet"]
["148","Girls - High School","148-Girls - High School"]

{"sheet":"Payroll Entities","index":8,"n_rows":30,"n_cols":6,"rows_kept":30,"cut":false,"hidden":false,"merged":[]}
["Paylocity Loc ID","Paylocity Loc Name","Entity ID","Entity Name","Open books from","Federal ID"]
[]
[13000,{"$f":"_xlfn.CONCAT(A3, \"-\",D3)","v":"13000-Roman Catholic Archdiocese of Indpls"},"100","Roman Catholic Archdiocese of Indpls","2015-04-01",{"$f":"C3&\" - \"&D3","v":"100 - Roman Catholic Archdiocese of Indpls"}]
[33602,{"$f":"_xlfn.CONCAT(A4, \"-\",D4)","v":"33602-Catholic Charities Indianapolis, Inc"},"110","Catholic Charities Indianapolis, Inc","2015-04-01",{"$f":"C4&\" - \"&D4","v":"110 - Catholic Charities Indianapolis, Inc"}]
[33608,"33608-Catholic Charities Bloomington, Inc.","120","Catholic Charities Bloomington, Inc.","2015-04-01","120 - Catholic Charities Bloomington, Inc."]
[33621,"33621-Catholic Charities Terre Haute, Inc.","130","Catholic Charities Terre Haute, Inc.","2015-04-01","130 - Catholic Charities Terre Haute, Inc."]
[33621,"33621-Terre Haute Catholic Charities Foodbank","140","Terre Haute Catholic Charities Foodbank","2015-04-01","140 - Terre Haute Catholic Charities Foodbank"]
[33619,"33619-Catholic Charities Tell City, Inc.","150","Catholic Charities Tell City, Inc.","2015-04-01","150 - Catholic Charities Tell City, Inc."]
[33606,"33606-St. Elizabeth Catholic Charities, Inc.","170","St. Elizabeth Catholic Charities, Inc.","2015-04-01","170 - St. Elizabeth Catholic Charities, Inc."]
[13350,"13350-Our Lady of Fatima Retreat House, Inc.","180","Our Lady of Fatima Retreat House, Inc.","2015-04-01","180 - Our Lady of Fatima Retreat House, Inc."]
[13000,"13000-Bishop Simon Brute College Seminary, Inc","190","Bishop Simon Brute College Seminary, Inc","2015-04-01","190 - Bishop Simon Brute College Seminary, Inc"]
[13510,"13510-Catholic Youth Org of the Arch of Indpls","210","Catholic Youth Org of the Arch of Indpls","2015-04-01","210 - Catholic Youth Org of the Arch of Indpls"]
[13515,"13515-Catholic Youth Org Camp Rancho Framasa","220","Catholic Youth Org Camp Rancho Framasa","2015-04-01","220 - Catholic Youth Org Camp Rancho Framasa"]
[13604,"13604-St. Mary's Child Center, Inc.","230","St. Mary's Child Center, Inc.","2015-04-01","230 - St. Mary's Child Center, Inc."]
[13000,"13000-Criterion Press, Inc.","240","Criterion Press, Inc.","2015-04-01","240 - Criterion Press, Inc."]
[13250,"13250-ADI Schools, Inc.","260","ADI Schools, Inc.","2015-04-01","260 - ADI Schools, Inc."]
[13250,"13250-NDAA Central Office","300-A","NDAA Central Office",null,"300-A - NDAA Central Office"]
[13250,"13250-NDAA St. Anthony","300-B","NDAA St. Anthony",null,"300-B - NDAA St. Anthony"]
[13250,"13250-NDAA St. Philip Neri","300-C","NDAA St. Philip Neri",null,"300-C - NDAA St. Philip Neri"]
[13250,"13250-NDAA Holy Cross","300-D","NDAA Holy Cross",null,"300-D - NDAA Holy Cross"]
[13250,"13250-NDAA Holy Angels","300-E","NDAA Holy Angels",null,"300-E - NDAA Holy Angels"]
[13250,"13250-NDAA Central Catholic","300-F","NDAA Central Catholic",null,"300-F - NDAA Central Catholic"]
[]
[]
[]
[]
["NA",null,"250","Archdiocese of Indianapolis Cemeteries","2015-04-01",{"$f":"C27&\" - \"&D27","v":"250 - Archdiocese of Indianapolis Cemeteries"}]
["NA",null,"999","Eliminations","2015-04-01",{"$f":"C28&\" - \"&D28","v":"999 - Eliminations"}]
["NA",null,"160","Catholic Charities of the Arch of Indi","2015-04-01",{"$f":"C29&\" - \"&D29","v":"160 - Catholic Charities of the Arch of Indi"}]
["NA",{"$f":"_xlfn.CONCAT(A30, \"-\",D30)","v":"NA-Catholic Community Foundation, Inc."},"200","Catholic Community Foundation, Inc.","2015-04-01",{"$f":"C30&\" - \"&D30","v":"200 - Catholic Community Foundation, Inc."}]